[Event "*** Titled Tuesday Blitz"]
[Site "Chess.com"]
[Date "2020.12.01"]
[Round "5"]
[White "Supernotar"]
[Black "Shuvalov"]
[Result "1-0"]
[WhiteElo "2782"]
[BlackElo "2433"]
[TimeControl "180+1"]
[EndTime "10:55:52 PST"]
[Termination "Supernotar won on time"]

1. d4 {[%clk 0:03:00.9]} 1... Nf6 {[%clk 0:02:59.1]} 2. c4 {[%clk 0:02:59.2]}
2... g6 {[%clk 0:02:58.9]} 3. Nc3 {[%clk 0:02:59.1]} 3... d5 {[%clk 0:02:58.8]}
4. cxd5 {[%clk 0:02:59.2]} 4... Nxd5 {[%clk 0:02:59.7]} 5. e4 {[%clk 0:02:59.6]}
5... Nxc3 {[%clk 0:03:00]} 6. bxc3 {[%clk 0:03:00.5]} 6... Bg7 {[%clk
0:03:00.5]} 7. Nf3 {[%clk 0:03:00.9]} 7... c5 {[%clk 0:02:59.9]} 8. Be3 {[%clk
0:03:01]} 8... Qa5 {[%clk 0:02:59.2]} 9. Qd2 {[%clk 0:03:01.2]} 9... Nc6 {[%clk
0:02:54.1]} 10. Rc1 {[%clk 0:03:01]} 10... cxd4 {[%clk 0:02:50.5]} 11. cxd4
{[%clk 0:03:01.9]} 11... Qxd2+ {[%clk 0:02:50.1]} 12. Kxd2 {[%clk 0:03:02.8]}
12... O-O {[%clk 0:02:48.2]} 13. d5 {[%clk 0:03:03.3]} 13... Rd8 {[%clk
0:02:45.6]} 14. Ke1 {[%clk 0:03:03.6]} 14... Na5 {[%clk 0:02:32.4]} 15. Bg5
{[%clk 0:03:03.3]} 15... Bb2 {[%clk 0:02:11.5]} 16. Rc7 {[%clk 0:02:48.9]} 16...
f6 {[%clk 0:02:05.1]} 17. Bd2 {[%clk 0:02:46.6]} 17... b6 {[%clk 0:01:49.4]} 18.
Rxe7 {[%clk 0:02:46.4]} 18... Ba3 {[%clk 0:01:46.9]} 19. Rc7 {[%clk 0:02:46]}
19... Bd6 {[%clk 0:01:38.1]} 20. Rc1 {[%clk 0:02:37.6]} 20... Re8 {[%clk
0:01:37.3]} 21. Bd3 {[%clk 0:02:26.8]} 21... Bf5 {[%clk 0:01:36.2]} 22. Bxa5
{[%clk 0:02:15.3]} 22... Bxe4 {[%clk 0:01:25.3]} 23. Kd2 {[%clk 0:01:59.4]}
23... Bf4+ {[%clk 0:01:18.4]} 24. Kc3 {[%clk 0:01:51.7]} 24... Rac8+ {[%clk
0:01:12.6]} 25. Kd4 {[%clk 0:01:46.3]} 25... Bxc1 {[%clk 0:01:02]} 26. Bxe4
{[%clk 0:01:19.2]} 26... Bb2+ {[%clk 0:01:00.3]} 27. Kd3 {[%clk 0:01:16.8]}
27... f5 {[%clk 0:00:58.9]} 28. Bxf5 {[%clk 0:01:12.8]} 28... gxf5 {[%clk
0:00:58.7]} 29. Bb4 {[%clk 0:01:10.5]} 29... Re4 {[%clk 0:00:55.6]} 30. Bd2
{[%clk 0:01:01.5]} 30... Rd8 {[%clk 0:00:51.6]} 31. Kc2 {[%clk 0:00:59]} 31...
Bf6 {[%clk 0:00:49.7]} 32. Be3 {[%clk 0:00:50.3]} 32... Rxd5 {[%clk 0:00:48.6]}
33. Nd2 {[%clk 0:00:49]} 33... Ra4 {[%clk 0:00:47.5]} 34. Kb3 {[%clk 0:00:48.1]}
34... Rda5 {[%clk 0:00:46.8]} 35. Nc4 {[%clk 0:00:46.6]} 35... Rxa2 {[%clk
0:00:37.5]} 36. Nxa5 {[%clk 0:00:46.3]} 36... Rxa5 {[%clk 0:00:38.4]} 37. Rc1
{[%clk 0:00:41.3]} 37... Re5 {[%clk 0:00:27.7]} 38. Rc7 {[%clk 0:00:37.3]} 38...
Re7 {[%clk 0:00:26.6]} 39. Rc6 {[%clk 0:00:37.5]} 39... Kf7 {[%clk 0:00:25.4]}
40. h3 {[%clk 0:00:37.3]} 40... Be5 {[%clk 0:00:21]} 41. g4 {[%clk 0:00:34.4]}
41... f4 {[%clk 0:00:18.4]} 42. Bd2 {[%clk 0:00:33]} 42... Rc7 {[%clk
0:00:18.6]} 43. Rh6 {[%clk 0:00:30.4]} 43... Kg7 {[%clk 0:00:17.1]} 44. Rh5
{[%clk 0:00:29.5]} 44... Kg6 {[%clk 0:00:16.6]} 45. Rxe5 {[%clk 0:00:28.7]}
45... Rf7 {[%clk 0:00:14.3]} 46. f3 {[%clk 0:00:26.2]} 46... Rd7 {[%clk
0:00:14.3]} 47. Kc2 {[%clk 0:00:22.1]} 47... Rd4 {[%clk 0:00:13.7]} 48. Kc3
{[%clk 0:00:16.1]} 48... Ra4 {[%clk 0:00:12.3]} 49. Kd3 {[%clk 0:00:16.5]} 49...
Kf6 {[%clk 0:00:11.6]} 50. Rf5+ {[%clk 0:00:16]} 50... Ke6 {[%clk 0:00:11]} 51.
Rxf4 {[%clk 0:00:16.6]} 51... Ra3+ {[%clk 0:00:11.1]} 52. Ke2 {[%clk 0:00:16.3]}
52... b5 {[%clk 0:00:10.7]} 53. Re4+ {[%clk 0:00:16.5]} 53... Kd5 {[%clk
0:00:10.6]} 54. g5 {[%clk 0:00:15.7]} 54... a5 {[%clk 0:00:10.6]} 55. h4 {[%clk
0:00:16]} 55... b4 {[%clk 0:00:10.9]} 56. Bxb4 {[%clk 0:00:13.5]} 56... axb4
{[%clk 0:00:07.7]} 57. Rxb4 {[%clk 0:00:13.8]} 57... Ra2+ {[%clk 0:00:07.7]} 58.
Ke3 {[%clk 0:00:13.8]} 58... Rh2 {[%clk 0:00:07.1]} 59. Re4 {[%clk 0:00:12.9]}
59... Rh3 {[%clk 0:00:06.2]} 60. Kf2 {[%clk 0:00:12.5]} 60... Kd6 {[%clk
0:00:04.3]} 61. Kg2 {[%clk 0:00:12.5]} 1-0

[Event "*** Titled Tuesday Blitz"]
[Site "Chess.com"]
[Date "2020.12.01"]
[Round "5"]
[White "Leonid_Starozhilov"]
[Black "ChronicUnhappiness"]
[Result "1-0"]
[WhiteElo "2665"]
[BlackElo "2362"]
[TimeControl "180+1"]
[EndTime "10:55:53 PST"]
[Termination "Leonid_Starozhilov won by checkmate"]

1. e4 {[%clk 0:03:00.9]} 1... c5 {[%clk 0:02:59.4]} 2. Nf3 {[%clk 0:03:01]} 2...
Nc6 {[%clk 0:02:59.6]} 3. Bb5 {[%clk 0:03:00.1]} 3... g6 {[%clk 0:02:58.6]} 4.
O-O {[%clk 0:02:59.9]} 4... Bg7 {[%clk 0:02:58.1]} 5. Nc3 {[%clk 0:03:00.1]}
5... Nf6 {[%clk 0:02:57.1]} 6. Bxc6 {[%clk 0:02:58.5]} 6... dxc6 {[%clk
0:02:55.5]} 7. d3 {[%clk 0:02:57.9]} 7... O-O {[%clk 0:02:52.3]} 8. h3 {[%clk
0:02:57.3]} 8... b6 {[%clk 0:02:46]} 9. Nh2 {[%clk 0:02:51.5]} 9... e5 {[%clk
0:02:36.6]} 10. Be3 {[%clk 0:02:16.3]} 10... Nh5 {[%clk 0:02:34.8]} 11. Ng4
{[%clk 0:02:04.6]} 11... Bxg4 {[%clk 0:02:31.9]} 12. hxg4 {[%clk 0:01:59.9]}
12... Nf4 {[%clk 0:02:31.1]} 13. g3 {[%clk 0:01:57.6]} 13... Ne6 {[%clk
0:02:28.8]} 14. Kg2 {[%clk 0:01:57.9]} 14... h6 {[%clk 0:02:12.5]} 15. Rh1
{[%clk 0:01:55.1]} 15... g5 {[%clk 0:02:12.6]} 16. Qf3 {[%clk 0:01:45.3]} 16...
Nd4 {[%clk 0:02:05.7]} 17. Bxd4 {[%clk 0:01:38.7]} 17... cxd4 {[%clk 0:02:06]}
18. Ne2 {[%clk 0:01:39.2]} 18... Qd7 {[%clk 0:02:05.6]} 19. Rh5 {[%clk
0:01:36.1]} 19... Rfe8 {[%clk 0:02:00.2]} 20. Qf5 {[%clk 0:01:23.7]} 20... Qxf5
{[%clk 0:01:52]} 21. gxf5 {[%clk 0:01:24.6]} 21... f6 {[%clk 0:01:48.9]} 22.
Rhh1 {[%clk 0:01:18.9]} 22... c5 {[%clk 0:01:46.5]} 23. c4 {[%clk 0:01:18.9]}
23... a6 {[%clk 0:01:42]} 24. Rac1 {[%clk 0:01:12.5]} 24... Bf8 {[%clk
0:01:40.6]} 25. f4 {[%clk 0:01:08.4]} 25... exf4 {[%clk 0:01:32.1]} 26. gxf4
{[%clk 0:01:09.3]} 26... b5 {[%clk 0:01:30.4]} 27. fxg5 {[%clk 0:01:01.6]} 27...
hxg5 {[%clk 0:01:17.8]} 28. Ng3 {[%clk 0:00:56.3]} 28... bxc4 {[%clk 0:01:13]}
29. Rxc4 {[%clk 0:00:55.2]} 29... Rab8 {[%clk 0:01:09.4]} 30. b3 {[%clk
0:00:54.3]} 30... Rb5 {[%clk 0:01:02.9]} 31. Nf1 {[%clk 0:00:42.7]} 31... Rb4
{[%clk 0:00:53.2]} 32. Nd2 {[%clk 0:00:42.5]} 32... Rxc4 {[%clk 0:00:51.3]} 33.
bxc4 {[%clk 0:00:33.8]} 33... Rb8 {[%clk 0:00:41.7]} 34. Rb1 {[%clk 0:00:34.2]}
34... Rxb1 {[%clk 0:00:41.5]} 35. Nxb1 {[%clk 0:00:35.1]} 35... Kf7 {[%clk
0:00:40.8]} 36. Kf3 {[%clk 0:00:32.9]} 36... Bd6 {[%clk 0:00:37.6]} 37. Nd2
{[%clk 0:00:31.9]} 37... Ke7 {[%clk 0:00:36]} 38. Kg4 {[%clk 0:00:31.4]} 38...
Kd7 {[%clk 0:00:34]} 39. Nf3 {[%clk 0:00:31.4]} 39... Kc6 {[%clk 0:00:30.3]} 40.
Kh5 {[%clk 0:00:08.2]} 40... Kb6 {[%clk 0:00:29.7]} 41. Kg4 {[%clk 0:00:06.3]}
41... Ka5 {[%clk 0:00:28.4]} 42. e5 {[%clk 0:00:05.9]} 42... fxe5 {[%clk
0:00:28]} 43. Nxg5 {[%clk 0:00:05.8]} 43... Kb4 {[%clk 0:00:20.4]} 44. f6 {[%clk
0:00:05]} 44... Kc3 {[%clk 0:00:15.9]} 45. Ne4+ {[%clk 0:00:04.9]} 45... Kxd3
{[%clk 0:00:15.2]} 46. Nxd6 {[%clk 0:00:05.7]} 46... e4 {[%clk 0:00:14.9]} 47.
Nxe4 {[%clk 0:00:04.4]} 47... Kxe4 {[%clk 0:00:14.2]} 48. f7 {[%clk 0:00:05.3]}
48... Kd3 {[%clk 0:00:15.1]} 49. f8=Q {[%clk 0:00:05.8]} 49... Kxc4 {[%clk
0:00:16]} 50. Qf1+ {[%clk 0:00:06]} 50... d3 {[%clk 0:00:14.9]} 51. Kf3 {[%clk
0:00:04.7]} 51... Kc3 {[%clk 0:00:15.3]} 52. Qc1+ {[%clk 0:00:04.8]} 52... Kb4
{[%clk 0:00:15.1]} 53. Ke3 {[%clk 0:00:04.2]} 53... c4 {[%clk 0:00:16]} 54. Qb2+
{[%clk 0:00:04.2]} 54... Kc5 {[%clk 0:00:15.7]} 55. Qd4+ {[%clk 0:00:03.9]}
55... Kb4 {[%clk 0:00:14.5]} 56. a3+ {[%clk 0:00:01.8]} 56... Kb3 {[%clk
0:00:13.9]} 57. Kd2 {[%clk 0:00:01.5]} 57... a5 {[%clk 0:00:13.9]} 58. Qc3+
{[%clk 0:00:02.4]} 58... Ka4 {[%clk 0:00:14]} 59. Qxc4+ {[%clk 0:00:02.8]} 59...
Kxa3 {[%clk 0:00:14.9]} 60. Qxd3+ {[%clk 0:00:03.4]} 60... Kb2 {[%clk
0:00:14.9]} 61. Qc2+ {[%clk 0:00:03.8]} 61... Ka3 {[%clk 0:00:14.9]} 62. Qb1
{[%clk 0:00:04]} 62... a4 {[%clk 0:00:15.8]} 63. Qc1+ {[%clk 0:00:04.2]} 63...
Ka2 {[%clk 0:00:15.9]} 64. Qc5 {[%clk 0:00:03.7]} 64... a3 {[%clk 0:00:16.8]}
65. Qb5 {[%clk 0:00:03.5]} 65... Ka1 {[%clk 0:00:16.5]} 66. Kc2 {[%clk 0:00:04]}
66... a2 {[%clk 0:00:17.4]} 67. Qb2# {[%clk 0:00:04.3]} 1-0

[Event "*** Titled Tuesday Blitz"]
[Site "Chess.com"]
[Date "2020.12.01"]
[Round "5"]
[White "Zq1"]
[Black "The_Machine04"]
[Result "0-1"]
[WhiteElo "2567"]
[BlackElo "2415"]
[TimeControl "180+1"]
[EndTime "10:55:57 PST"]
[Termination "The_Machine04 won by resignation"]

1. d4 {[%clk 0:02:58.5]} 1... d6 {[%clk 0:02:30.5]} 2. e4 {[%clk 0:02:55.5]}
2... Nf6 {[%clk 0:02:28.9]} 3. Nc3 {[%clk 0:02:55.3]} 3... e5 {[%clk 0:02:28.8]}
4. dxe5 {[%clk 0:02:48]} 4... dxe5 {[%clk 0:02:29.7]} 5. Qxd8+ {[%clk
0:02:47.4]} 5... Kxd8 {[%clk 0:02:30.6]} 6. Nf3 {[%clk 0:02:47.2]} 6... Bd6
{[%clk 0:02:27.3]} 7. Bc4 {[%clk 0:02:45.8]} 7... Be6 {[%clk 0:02:27.1]} 8. Bxe6
{[%clk 0:02:45.5]} 8... fxe6 {[%clk 0:02:28]} 9. Be3 {[%clk 0:02:42.5]} 9... Ke7
{[%clk 0:02:28]} 10. h3 {[%clk 0:02:42.1]} 10... Nc6 {[%clk 0:02:27]} 11. Ke2
{[%clk 0:02:41.5]} 11... a6 {[%clk 0:02:27]} 12. a4 {[%clk 0:02:37.8]} 12... h6
{[%clk 0:02:24.2]} 13. Rhd1 {[%clk 0:02:28.3]} 13... g5 {[%clk 0:02:15.1]} 14.
g3 {[%clk 0:02:21.7]} 14... Raf8 {[%clk 0:01:53.9]} 15. Rd3 {[%clk 0:01:53.8]}
15... g4 {[%clk 0:01:36.2]} 16. Nh4 {[%clk 0:01:41.6]} 16... Kf7 {[%clk
0:01:07.4]} 17. Rh1 {[%clk 0:01:32.8]} 17... Kg7 {[%clk 0:01:02.9]} 18. Nd1
{[%clk 0:01:17.7]} 18... Nb4 {[%clk 0:00:48.7]} 19. Rb3 {[%clk 0:01:11.1]} 19...
Nxc2 {[%clk 0:00:28.6]} 20. Rxb7 {[%clk 0:01:10.4]} 20... Rb8 {[%clk 0:00:28.3]}
21. Rxb8 {[%clk 0:01:09.1]} 21... Rxb8 {[%clk 0:00:29.2]} 22. Ng2 {[%clk
0:01:02.2]} 22... Nxe3 {[%clk 0:00:17.1]} 23. Ngxe3 {[%clk 0:01:01.2]} 23...
gxh3 {[%clk 0:00:17.3]} 24. f3 {[%clk 0:01:00]} 24... Rb4 {[%clk 0:00:12.6]} 25.
Rxh3 {[%clk 0:00:58.1]} 25... Rxa4 {[%clk 0:00:11.5]} 26. Rh2 {[%clk 0:00:56.4]}
26... Rb4 {[%clk 0:00:10.6]} 27. Kd3 {[%clk 0:00:54.4]} 27... a5 {[%clk
0:00:09.8]} 28. Rc2 {[%clk 0:00:52.9]} 28... Nd7 {[%clk 0:00:09.4]} 29. Rc6
{[%clk 0:00:46.9]} 29... Nc5+ {[%clk 0:00:06.3]} 30. Kc2 {[%clk 0:00:44.4]}
30... Rb6 {[%clk 0:00:03]} 31. Rxb6 {[%clk 0:00:43]} 31... cxb6 {[%clk
0:00:03.9]} 32. Nc3 {[%clk 0:00:39.3]} 32... Bc7 {[%clk 0:00:04.3]} 33. Nb5
{[%clk 0:00:39.1]} 33... Bd8 {[%clk 0:00:03.9]} 34. Ng4 {[%clk 0:00:32.9]} 34...
Nd7 {[%clk 0:00:03.6]} 35. Kc3 {[%clk 0:00:25.7]} 35... h5 {[%clk 0:00:04]} 36.
Ne3 {[%clk 0:00:24.6]} 36... Be7 {[%clk 0:00:04.1]} 37. Kc4 {[%clk 0:00:20.5]}
37... Bc5 {[%clk 0:00:04.3]} 38. Ng2 {[%clk 0:00:20.4]} 38... Bf2 {[%clk
0:00:04]} 39. g4 {[%clk 0:00:19.1]} 39... h4 {[%clk 0:00:03.8]} 40. Nxh4 {[%clk
0:00:16.7]} 40... Bxh4 {[%clk 0:00:03.8]} 41. Nc7 {[%clk 0:00:16.6]} 41... Bf2
{[%clk 0:00:03.3]} 42. Nxe6+ {[%clk 0:00:15.3]} 42... Kf6 {[%clk 0:00:03.9]} 43.
Nc7 {[%clk 0:00:13.7]} 43... Kg5 {[%clk 0:00:03.9]} 44. Nd5 {[%clk 0:00:13.5]}
44... Bc5 {[%clk 0:00:02.5]} 45. Kb5 {[%clk 0:00:13.3]} 45... Nf6 {[%clk
0:00:02.4]} 46. Nxb6 {[%clk 0:00:10.1]} 46... Bxb6 {[%clk 0:00:02.3]} 47. Kxb6
{[%clk 0:00:10.3]} 47... Kf4 {[%clk 0:00:02.5]} 48. Kxa5 {[%clk 0:00:09.9]}
48... Kxf3 {[%clk 0:00:01]} 49. g5 {[%clk 0:00:10.1]} 49... Nxe4 {[%clk
0:00:01.6]} 50. g6 {[%clk 0:00:10.3]} 50... Nf6 {[%clk 0:00:02.5]} 51. b4 {[%clk
0:00:09.8]} 51... e4 {[%clk 0:00:03.4]} 52. b5 {[%clk 0:00:10]} 52... e3 {[%clk
0:00:04.3]} 53. b6 {[%clk 0:00:10.4]} 53... e2 {[%clk 0:00:05.2]} 54. b7 {[%clk
0:00:10.8]} 54... e1=Q+ {[%clk 0:00:06.1]} 55. Kb6 {[%clk 0:00:10.8]} 55... Qb1+
{[%clk 0:00:06.1]} 56. Kc7 {[%clk 0:00:08.1]} 56... Qc2+ {[%clk 0:00:03.1]} 57.
Kd6 {[%clk 0:00:06.2]} 57... Qd3+ {[%clk 0:00:03.2]} 58. Ke6 {[%clk 0:00:06.1]}
58... Qb3+ {[%clk 0:00:03.3]} 59. Kxf6 {[%clk 0:00:05.5]} 59... Qxb7 {[%clk
0:00:04]} 60. g7 {[%clk 0:00:05.5]} 60... Qc6+ {[%clk 0:00:04.5]} 61. Kf7 {[%clk
0:00:05.6]} 61... Qd7+ {[%clk 0:00:04.9]} 62. Kf8 {[%clk 0:00:05.7]} 62... Qd8+
{[%clk 0:00:05.3]} 63. Kf7 {[%clk 0:00:05.8]} 63... Qd5+ {[%clk 0:00:05.8]} 64.
Kf8 {[%clk 0:00:05.9]} 64... Qf5+ {[%clk 0:00:06.4]} 65. Ke7 {[%clk 0:00:05.7]}
65... Qg6 {[%clk 0:00:07]} 66. Kf8 {[%clk 0:00:05.9]} 66... Qf6+ {[%clk
0:00:07.4]} 0-1

[Event "*** Titled Tuesday Blitz"]
[Site "Chess.com"]
[Date "2020.12.01"]
[Round "5"]
[White "AlexTriapishko"]
[Black "csati17"]
[Result "1-0"]
[WhiteElo "2802"]
[BlackElo "2591"]
[TimeControl "180+1"]
[EndTime "10:56:02 PST"]
[Termination "AlexTriapishko won by resignation"]

1. e4 {[%clk 0:03:00.9]} 1... e6 {[%clk 0:03:00.2]} 2. d4 {[%clk 0:02:59.4]}
2... d5 {[%clk 0:03:00.5]} 3. Bd3 {[%clk 0:02:58]} 3... Nc6 {[%clk 0:03:00.2]}
4. Nf3 {[%clk 0:02:56.9]} 4... Nb4 {[%clk 0:02:52.1]} 5. O-O {[%clk 0:02:56.2]}
5... Nxd3 {[%clk 0:02:52.2]} 6. cxd3 {[%clk 0:02:57.1]} 6... dxe4 {[%clk
0:02:48]} 7. dxe4 {[%clk 0:02:57.1]} 7... Nf6 {[%clk 0:02:48.9]} 8. Nc3 {[%clk
0:02:57.1]} 8... Be7 {[%clk 0:02:45.3]} 9. Bg5 {[%clk 0:02:56]} 9... h6 {[%clk
0:02:42.3]} 10. Bf4 {[%clk 0:02:29.8]} 10... a6 {[%clk 0:02:27.4]} 11. Rc1
{[%clk 0:02:28.9]} 11... O-O {[%clk 0:02:25]} 12. h3 {[%clk 0:02:28.8]} 12... b5
{[%clk 0:02:16.8]} 13. d5 {[%clk 0:02:13.6]} 13... b4 {[%clk 0:02:03.1]} 14. Na4
{[%clk 0:02:12.4]} 14... Bd6 {[%clk 0:01:52.4]} 15. Bxd6 {[%clk 0:01:20.9]}
15... cxd6 {[%clk 0:01:52.6]} 16. dxe6 {[%clk 0:01:12.1]} 16... Bxe6 {[%clk
0:01:53.5]} 17. Qd4 {[%clk 0:01:06.9]} 17... Qa5 {[%clk 0:01:39.5]} 18. b3
{[%clk 0:01:04.7]} 18... Rfd8 {[%clk 0:01:36.3]} 19. Rfe1 {[%clk 0:00:54.2]}
19... Rab8 {[%clk 0:01:28]} 20. Rc6 {[%clk 0:00:49.3]} 20... Ne8 {[%clk
0:01:09.3]} 21. Rb6 {[%clk 0:00:21.9]} 21... Rxb6 {[%clk 0:01:03.8]} 22. Qxb6
{[%clk 0:00:21.3]} 22... Qxb6 {[%clk 0:01:04.1]} 23. Nxb6 {[%clk 0:00:22.2]}
23... Rb8 {[%clk 0:01:01.1]} 24. Na4 {[%clk 0:00:18.5]} 24... Bd7 {[%clk
0:00:57.1]} 25. Nb2 {[%clk 0:00:16.9]} 25... Rc8 {[%clk 0:00:55.3]} 26. Nc4
{[%clk 0:00:14.3]} 26... Be6 {[%clk 0:00:51]} 27. Nfd2 {[%clk 0:00:14.6]} 27...
Rc5 {[%clk 0:00:43.6]} 28. f4 {[%clk 0:00:13.6]} 28... g6 {[%clk 0:00:42.2]} 29.
Kf2 {[%clk 0:00:08.1]} 29... d5 {[%clk 0:00:38.7]} 30. exd5 {[%clk 0:00:07.6]}
30... Rxd5 {[%clk 0:00:39.6]} 31. Ne4 {[%clk 0:00:08]} 31... Kg7 {[%clk
0:00:36.8]} 32. Ke3 {[%clk 0:00:07.7]} 32... Bf5 {[%clk 0:00:30.3]} 33. g4
{[%clk 0:00:04.6]} 33... Bxe4 {[%clk 0:00:30]} 34. Kxe4 {[%clk 0:00:05.5]} 34...
Nf6+ {[%clk 0:00:30.6]} 35. Kf3 {[%clk 0:00:06]} 35... Rd3+ {[%clk 0:00:30.3]}
36. Re3 {[%clk 0:00:06.4]} 36... Rd1 {[%clk 0:00:27.6]} 37. Re7 {[%clk
0:00:06.3]} 37... Rd3+ {[%clk 0:00:25.5]} 38. Kg2 {[%clk 0:00:04.9]} 38... Nd5
{[%clk 0:00:25.2]} 39. Rxf7+ {[%clk 0:00:05.3]} 39... Kxf7 {[%clk 0:00:23.9]}
40. Ne5+ {[%clk 0:00:05.9]} 40... Ke6 {[%clk 0:00:24.5]} 41. Nxd3 {[%clk
0:00:06.8]} 41... a5 {[%clk 0:00:23.4]} 42. Kf3 {[%clk 0:00:06.3]} 42... Nc3
{[%clk 0:00:23.3]} 43. Nc1 {[%clk 0:00:03.7]} 43... Kd5 {[%clk 0:00:20.5]} 44.
Ke3 {[%clk 0:00:04.1]} 44... Nb5 {[%clk 0:00:16.7]} 45. Ne2 {[%clk 0:00:03.4]}
45... g5 {[%clk 0:00:14.6]} 46. fxg5 {[%clk 0:00:03]} 46... hxg5 {[%clk
0:00:14.9]} 47. Kd3 {[%clk 0:00:03.8]} 47... Ke5 {[%clk 0:00:14.2]} 48. Ng3
{[%clk 0:00:03.9]} 48... Nc3 {[%clk 0:00:13.6]} 49. a4 {[%clk 0:00:03.2]} 49...
Nd5 {[%clk 0:00:07.6]} 50. Nf5 {[%clk 0:00:02.9]} 50... Nf4+ {[%clk 0:00:07.3]}
51. Kc4 {[%clk 0:00:02.5]} 51... Nxh3 {[%clk 0:00:06.6]} 52. Kb5 {[%clk
0:00:01.9]} 52... Nf2 {[%clk 0:00:07.1]} 53. Nh6 {[%clk 0:00:02.4]} 53... Kd4
{[%clk 0:00:05.5]} 54. Kxa5 {[%clk 0:00:02.3]} 54... Kc3 {[%clk 0:00:06]} 55.
Kb5 {[%clk 0:00:02.1]} 55... Ne4 {[%clk 0:00:05.3]} 56. a5 {[%clk 0:00:03]}
56... Nd6+ {[%clk 0:00:05.4]} 57. Kc6 {[%clk 0:00:03.3]} 57... Nc8 {[%clk
0:00:05.8]} 58. Kb7 {[%clk 0:00:02.9]} 58... Nd6+ {[%clk 0:00:05.7]} 59. Kc7
{[%clk 0:00:03.4]} 59... Nb5+ {[%clk 0:00:05.7]} 60. Kb6 {[%clk 0:00:04]} 60...
Nd6 {[%clk 0:00:05.6]} 61. Nf5 {[%clk 0:00:03.3]} 61... Kxb3 {[%clk 0:00:05.3]}
62. Nxd6 {[%clk 0:00:03.1]} 62... Kc3 {[%clk 0:00:05.6]} 63. Ne4+ {[%clk
0:00:03.3]} 63... Kc2 {[%clk 0:00:05.9]} 64. Nc5 {[%clk 0:00:04.2]} 1-0

[Event "*** Titled Tuesday Blitz"]
[Site "Chess.com"]
[Date "2020.12.01"]
[Round "5"]
[White "j_coca"]
[Black "Legendinunknown"]
[Result "1/2-1/2"]
[WhiteElo "2384"]
[BlackElo "2667"]
[TimeControl "180+1"]
[EndTime "10:56:02 PST"]
[Termination "Game drawn by repetition"]

1. f4 {[%clk 0:02:59]} 1... d5 {[%clk 0:02:57.9]} 2. Nf3 {[%clk 0:02:10.5]} 2...
g6 {[%clk 0:02:54.9]} 3. e3 {[%clk 0:02:09.8]} 3... Bg7 {[%clk 0:02:52.4]} 4. d4
{[%clk 0:02:08.9]} 4... Nf6 {[%clk 0:02:49.4]} 5. Bd3 {[%clk 0:01:49.2]} 5... c5
{[%clk 0:02:47.1]} 6. c3 {[%clk 0:01:44.6]} 6... Nc6 {[%clk 0:02:46.6]} 7. Nbd2
{[%clk 0:01:36.2]} 7... b6 {[%clk 0:02:42.1]} 8. O-O {[%clk 0:01:35.9]} 8... O-O
{[%clk 0:02:41.3]} 9. Ne5 {[%clk 0:01:32.1]} 9... Bb7 {[%clk 0:02:40.9]} 10. Rf3
{[%clk 0:01:28]} 10... e6 {[%clk 0:02:36.6]} 11. Rh3 {[%clk 0:01:27]} 11... Nxe5
{[%clk 0:02:36.1]} 12. fxe5 {[%clk 0:01:26.6]} 12... Ne4 {[%clk 0:02:36.3]} 13.
Qg4 {[%clk 0:01:24.5]} 13... f5 {[%clk 0:02:28.1]} 14. exf6 {[%clk 0:01:20.1]}
14... Qxf6 {[%clk 0:02:00.2]} 15. Rf3 {[%clk 0:01:15.2]} 15... Qe7 {[%clk
0:01:38]} 16. Nxe4 {[%clk 0:01:14.2]} 16... Rxf3 {[%clk 0:01:36.4]} 17. gxf3
{[%clk 0:01:08.3]} 17... dxe4 {[%clk 0:01:36.4]} 18. Bxe4 {[%clk 0:01:08.3]}
18... Bxe4 {[%clk 0:01:31.6]} 19. Qxe4 {[%clk 0:01:09.2]} 19... Rf8 {[%clk
0:01:31.8]} 20. Qg4 {[%clk 0:01:04.4]} 20... Qd6 {[%clk 0:01:24.4]} 21. Bd2
{[%clk 0:01:01.1]} 21... e5 {[%clk 0:01:24.3]} 22. Rd1 {[%clk 0:00:55.5]} 22...
exd4 {[%clk 0:01:24.2]} 23. cxd4 {[%clk 0:00:55.6]} 23... cxd4 {[%clk
0:01:23.8]} 24. Bc3 {[%clk 0:00:52.6]} 24... Qd5 {[%clk 0:00:44.7]} 25. Bxd4
{[%clk 0:00:40.4]} 25... Qxf3 {[%clk 0:00:43.4]} 26. Qxf3 {[%clk 0:00:37.7]}
26... Rxf3 {[%clk 0:00:44.3]} 27. Bxg7 {[%clk 0:00:36.9]} 27... Kxg7 {[%clk
0:00:45.2]} 28. Rd7+ {[%clk 0:00:36.9]} 28... Rf7 {[%clk 0:00:44.8]} 29. Rd3
{[%clk 0:00:30.3]} 29... Kf6 {[%clk 0:00:42.6]} 30. Kf2 {[%clk 0:00:30.5]} 30...
Ke5+ {[%clk 0:00:42.8]} 31. Ke2 {[%clk 0:00:30.7]} 31... h5 {[%clk 0:00:42.5]}
32. Rd4 {[%clk 0:00:29.6]} 32... g5 {[%clk 0:00:42.5]} 33. Ra4 {[%clk
0:00:28.7]} 33... g4 {[%clk 0:00:40.4]} 34. Rb4 {[%clk 0:00:23.8]} 34... Rd7
{[%clk 0:00:38.2]} 35. a4 {[%clk 0:00:23.1]} 35... Kf5 {[%clk 0:00:33.3]} 36. a5
{[%clk 0:00:21.8]} 36... Rd6 {[%clk 0:00:29.7]} 37. Rb5+ {[%clk 0:00:20.7]}
37... Kg6 {[%clk 0:00:29.2]} 38. axb6 {[%clk 0:00:20.7]} 38... axb6 {[%clk
0:00:30.1]} 39. e4 {[%clk 0:00:20.2]} 39... h4 {[%clk 0:00:29.1]} 40. Rf5 {[%clk
0:00:18.3]} 40... Rf6 {[%clk 0:00:28.5]} 41. Rb5 {[%clk 0:00:18.2]} 41... g3
{[%clk 0:00:27.9]} 42. hxg3 {[%clk 0:00:18.6]} 42... hxg3 {[%clk 0:00:28.8]} 43.
Rd5 {[%clk 0:00:19.1]} 43... Rf2+ {[%clk 0:00:26.2]} 44. Ke3 {[%clk 0:00:18.8]}
44... Rxb2 {[%clk 0:00:26.6]} 45. Rd8 {[%clk 0:00:18.8]} 45... Kf7 {[%clk
0:00:25.1]} 46. Rd7+ {[%clk 0:00:17.1]} 46... Kf8 {[%clk 0:00:23.2]} 47. Rd8+
{[%clk 0:00:17.1]} 47... Kg7 {[%clk 0:00:22.4]} 48. Rd7+ {[%clk 0:00:17.1]}
48... Kh6 {[%clk 0:00:22.8]} 49. Rd8 {[%clk 0:00:16.7]} 49... Kg5 {[%clk
0:00:21.7]} 50. Rg8+ {[%clk 0:00:16.4]} 50... Kh4 {[%clk 0:00:22]} 51. e5 {[%clk
0:00:15.3]} 51... Rb1 {[%clk 0:00:21.5]} 52. Kf3 {[%clk 0:00:15]} 52... Rf1+
{[%clk 0:00:20.8]} 53. Ke2 {[%clk 0:00:15.1]} 53... Rf5 {[%clk 0:00:20.2]} 54.
e6 {[%clk 0:00:12.5]} 54... Re5+ {[%clk 0:00:19.2]} 55. Kf3 {[%clk 0:00:12.9]}
55... Rxe6 {[%clk 0:00:17.1]} 56. Rh8+ {[%clk 0:00:13.3]} 56... Kg5 {[%clk
0:00:16.5]} 57. Kxg3 {[%clk 0:00:12.8]} 57... Kf5 {[%clk 0:00:14.4]} 58. Kf3
{[%clk 0:00:11.3]} 58... Ke5 {[%clk 0:00:10.2]} 59. Ke3 {[%clk 0:00:11.2]} 59...
Kd5+ {[%clk 0:00:11.1]} 60. Kd3 {[%clk 0:00:11.5]} 60... Rg6 {[%clk 0:00:10.5]}
61. Rh5+ {[%clk 0:00:10.2]} 61... Kc6 {[%clk 0:00:10.5]} 62. Kc4 {[%clk
0:00:10.4]} 62... Kb7 {[%clk 0:00:10.9]} 63. Kb5 {[%clk 0:00:10.6]} 63... Rg7
{[%clk 0:00:11.1]} 64. Rf5 {[%clk 0:00:09.8]} 64... Rc7 {[%clk 0:00:11.4]} 65.
Rh5 {[%clk 0:00:10]} 65... Rd7 {[%clk 0:00:11.6]} 66. Rf5 {[%clk 0:00:10]} 66...
Rc7 {[%clk 0:00:12]} 67. Rg5 {[%clk 0:00:10.3]} 67... Rd7 {[%clk 0:00:12.3]} 68.
Rf5 {[%clk 0:00:10.7]} 68... Rc7 {[%clk 0:00:12.8]} 1/2-1/2